fUSD/lending_fUSD_20240803
["ID","MTS","AMOUNT","RATE_DAILY","PERIOD"]
[333983745,1722666670826,-500.0,0.00016712,2]
[333983746,1722666670836,-715.96,0.00016712,2]
[333983747,1722666670846,-500.0,0.00016712,2]
[333983748,1722666670856,-500.0,0.00016712,2]
[333983749,1722666670866,-511.012308,0.00016712,2]
[333983750,1722666670876,-500.0,0.00016712,2]
[333983751,1722666670886,-500.0,0.00016712,2]
[333983752,1722666670895,-500.0,0.00016712,2]
[333983753,1722666670906,-500.0,0.00016712,2]
[333983754,1722666670916,-616.34538134,0.00016712,2]
[333983755,1722666670928,-500.0,0.00016712,2]
[333983756,1722666670939,-517.53,0.00016712,2]
[333983757,1722666670948,-500.0,0.00016712,2]
[333983758,1722666670958,-151.0,0.00016712,2]
[333983759,1722666670968,-151.0,0.00016712,2]
[333983760,1722666670978,-507.93103045,0.00016712,2]
[333983761,1722666670988,-702.72,0.00016712,2]
[333983762,1722666670997,-509.15984716,0.00016712,2]
[333983763,1722666671007,-509.73927164,0.00016712,2]
[333983764,1722666671017,-501.87298427,0.00016712,2]
[333983765,1722666671027,-500.0,0.00016712,2]
[333983766,1722666671036,-500.0,0.00016712,2]
[333983767,1722666671046,-500.0,0.00016712,2]
[333983768,1722666671056,-500.0,0.00016712,2]
[333983769,1722666671066,-937.04,0.00016712,2]
[333983770,1722666671075,-500.0,0.00016712,2]
[333983771,1722666671085,-500.0,0.00016712,2]
[333983772,1722666671095,-500.0,0.00016712,2]
[333983773,1722666671104,-500.0,0.00016712,2]
[333983774,1722666671114,-500.0,0.00016712,2]
[333983775,1722666671123,-500.0,0.00016712,2]
[333983776,1722666671133,-500.0,0.00016712,2]
[333983777,1722666671143,-500.0,0.00016712,2]
[333983778,1722666671152,-500.0,0.00016712,2]
[333983779,1722666671162,-500.0,0.00016712,2]
[333983780,1722666671174,-500.0,0.00016712,2]
[333983781,1722666671184,-509.70541489,0.00016712,2]
[333983782,1722666671193,-500.0,0.00016712,2]
[333983783,1722666671203,-500.0,0.00016712,2]
[333983784,1722666671213,-887.0,0.00016712,2]
[333983785,1722666671222,-500.0,0.00016712,2]
[333983786,1722666671232,-500.0,0.00016712,2]
[333983787,1722666671242,-810.08,0.00016712,2]
[333983788,1722666671252,-500.0,0.00016712,2]
[333983789,1722666671261,-500.0,0.00016712,2]
[333983790,1722666671270,-544.56,0.00016712,2]
[333983791,1722666671280,-491.6832866,0.00016712,2]
[333983792,1722666671290,-500.0,0.00016712,2]
[333983793,1722666671300,-151.0,0.00016712,2]
[333983794,1722666671310,-503.43465609,0.00016712,2]
[333983795,1722666671319,-500.0,0.00016712,2]
[333983796,1722666671330,-152.726908,0.00016712,2]
[333983797,1722666671340,-500.0,0.00016712,2]
[333983798,1722666671350,-603.96,0.00016712,2]
[333983799,1722666671359,-500.0,0.00016712,2]
[333983800,1722666671369,-501.31297265,0.00016712,2]
[333983801,1722666671378,-500.0,0.00016712,2]
[333983802,1722666671388,-500.0,0.00016712,2]
[333983803,1722666671399,-500.0,0.00016712,2]
[333983804,1722666671408,-500.0,0.00016712,2]
[333983805,1722666671418,-500.0,0.00016712,2]
[333983806,1722666671429,-500.0,0.00016712,2]
[333983807,1722666671439,-151.0,0.00016712,2]
[333983808,1722666671450,-151.0,0.00016712,2]
[333983809,1722666671459,-500.0,0.00016712,2]
[333983810,1722666671469,-1120.78,0.00016712,2]
[333983811,1722666671478,-508.49710125,0.00016712,2]
[333983812,1722666671488,-500.0,0.00016712,2]
[333983813,1722666671497,-211.07164014,0.00016712,2]
[333983814,1722666671507,-794.41,0.00016712,2]
[333983815,1722666671517,-500.0,0.00016712,2]
[333983816,1722666671526,-213.90855945,0.00016712,2]
[333983817,1722666671536,-500.0,0.00016712,2]
[333983818,1722666671546,-500.0,0.00016712,2]
[333983819,1722666671556,-500.0,0.00016712,2]
[333983820,1722666671566,-1111.45,0.00016712,2]
[333983821,1722666671575,-500.0,0.00016712,2]
[333983822,1722666671585,-507.33550567,0.00016712,2]
[333983823,1722666671595,-500.0,0.00016712,2]
[333983824,1722666671604,-151.0,0.00016712,2]
[333983825,1722666671613,-151.0,0.00016712,2]
[333983826,1722666671623,-500.0,0.00016712,2]
[333983827,1722666671635,-500.0,0.00016712,2]
[333983828,1722666671646,-500.0,0.00016712,2]
[333983829,1722666671657,-633.16,0.00016712,2]
[333983830,1722666671667,-500.0,0.00016712,2]
[333983831,1722666671678,-500.0,0.00016712,2]
[333983832,1722666671687,-500.0,0.00016712,2]
[333983833,1722666671697,-500.0,0.00016712,2]
[333983834,1722666671709,-537.06716595,0.00016712,2]
[333983835,1722666671720,-500.0,0.00016712,2]
[333983836,1722666671731,-507.00720008,0.00016712,2]
[333983837,1722666671741,-500.0,0.00016712,2]
[333983838,1722666671751,-742.79,0.00016712,2]
[333983839,1722666671762,-500.0,0.00016712,2]
[333983840,1722666671772,-500.0,0.00016712,2]
[333983841,1722666671781,-500.0,0.00016712,2]
[333983842,1722666671791,-500.0,0.00016712,2]
[333983843,1722666671801,-172.68840831,0.00016712,2]
[333983844,1722666671810,-500.0,0.00016712,2]
[333983845,1722666671820,-466.122221,0.00016712,2]
[333983846,1722666671829,-466.122221,0.00016712,2]
[333983847,1722666671839,-1144.59,0.00016712,2]
[333983848,1722666671849,-500.0,0.00016712,2]
[333983849,1722666671859,-466.122221,0.00016712,2]
[333983850,1722666671873,-500.0,0.00016712,2]
[333983851,1722666671883,-500.0,0.00016712,2]
[333983852,1722666671893,-500.41,0.00016712,2]
[333983853,1722666671903,-466.122221,0.00016712,2]
[333983854,1722666671915,-500.0,0.00016712,2]
[333983855,1722666671927,-500.0,0.00016712,2]
[333983856,1722666671944,-591.2,0.00016712,2]
[333983857,1722666671953,-500.0,0.00016712,2]
[333983858,1722666671963,-500.0,0.00016712,2]
[333983859,1722666671972,-500.0,0.00016712,2]
[333983860,1722666671982,-500.0,0.00016712,2]
[333983861,1722666671991,-500.0,0.00016712,2]
[333983862,1722666672000,-500.0,0.00016712,2]
[333983863,1722666672010,-500.0,0.00016712,2]
[333983864,1722666672020,-800.028529,0.00016712,2]
[333983865,1722666672029,-800.028529,0.00016712,2]
[333983866,1722666672039,-500.0,0.00016712,2]
[333983867,1722666672048,-500.0,0.00016712,2]
[333983868,1722666672058,-151.0,0.00016712,2]
[333983869,1722666672067,-500.0,0.00016712,2]
[333983870,1722666672077,-151.0,0.00016712,2]
[333983871,1722666672086,-800.028529,0.00016712,2]
[333983872,1722666672096,-800.028529,0.00016712,2]
[333983873,1722666672434,-500.0,0.00016712,2]
[333983874,1722666672451,-500.0,0.00016712,2]
[333983875,1722666672461,-500.0,0.00016712,2]
[333983876,1722666672470,-667.95,0.00016712,2]
[333983877,1722666672479,-504.01410117,0.00016712,2]
[333983878,1722666672489,-500.0,0.00016712,2]
[333983879,1722666672498,-500.0,0.00016712,2]
[333983880,1722666672508,-500.0,0.00016712,2]
[333983881,1722666672517,-500.0,0.00016712,2]
[333983882,1722666672527,-710.02,0.00016712,2]
[333983883,1722666672536,-1017.87,0.00016712,2]
[333983884,1722666672545,-586.31,0.00016712,2]
[333983885,1722666672555,-500.0,0.00016712,2]
[333983886,1722666672564,-1326.03,0.00016712,2]
[333983887,1722666672574,-628.24,0.00016712,2]
[333983888,1722666672584,-689.07,0.00016712,2]
[333983889,1722666672594,-202.92276599,0.00016712,2]
[333983890,1722666672603,-513.13879779,0.00016712,2]
[333983891,1722666672612,-500.0,0.00016712,2]
[333983892,1722666672622,-500.0,0.00016712,2]
[333983893,1722666672636,-500.0,0.00016712,2]
[333983894,1722666672646,-525.679238,0.00016712,2]
[333983895,1722666672656,-554.01,0.00016712,2]
[333983896,1722666672665,-525.679238,0.00016712,2]
[333983897,1722666672677,-500.0,0.00016712,2]
[333983898,1722666672687,-500.0,0.00016712,2]
[333983899,1722666672696,-500.0,0.00016712,2]
[333983900,1722666672710,-500.0,0.00016712,2]
[333983901,1722666672720,-500.0,0.00016712,2]
[333983902,1722666672729,-525.679238,0.00016712,2]
[333983903,1722666672739,-525.679238,0.00016712,2]
[333983904,1722666672748,-500.0,0.00016712,2]
[333983905,1722666672759,-835.2,0.00016712,2]
[333983906,1722666672770,-500.0,0.00016712,2]
[333983907,1722666672780,-193.263827,0.00016712,2]
[333983908,1722666672791,-151.0,0.00016712,2]
[333983909,1722666672801,-541.45,0.00016712,2]
[333983910,1722666672813,-151.0,0.00016712,2]
[333983911,1722666672823,-500.0,0.00016712,2]
[333983912,1722666672834,-500.0,0.00016712,2]
[333983913,1722666672843,-500.0,0.00016712,2]
[333983914,1722666672853,-1060.7,0.00016712,2]
[333983915,1722666672865,-507.5290474,0.00016712,2]
[333983916,1722666672874,-500.0,0.00016712,2]
[333983917,1722666672884,-561.25,0.00016712,2]
[333983918,1722666672894,-573.22,0.00016712,2]
[333983919,1722666672903,-500.0,0.00016712,2]
[333983920,1722666672912,-500.0,0.00016712,2]
[333983921,1722666672922,-500.0,0.00016712,2]
[333983922,1722666672931,-500.0,0.00016712,2]
[333983923,1722666672941,-686.47,0.00016712,2]
[333983924,1722666672950,-500.0,0.00016712,2]
[333983925,1722666672959,-500.0,0.00016712,2]
[333983926,1722666672969,-500.0,0.00016712,2]
[333983927,1722666672978,-1223.77,0.00016712,2]
[333983928,1722666672989,-536.51,0.00016712,2]
[333983929,1722666672998,-500.0,0.00016712,2]
[333983930,1722666673007,-500.0,0.00016712,2]
[333983931,1722666673017,-500.0,0.00016712,2]
[333983932,1722666673026,-500.0,0.00016712,2]
[333983933,1722666673036,-500.0,0.00016712,2]
[333983934,1722666673045,-500.0,0.00016712,2]
[333983935,1722666673055,-500.0,0.00016712,2]
[333983936,1722666673064,-195.068578,0.00016712,2]
[333983937,1722666673074,-195.068578,0.00016712,2]
[333983938,1722666673084,-500.0,0.00016712,2]
[333983939,1722666673095,-151.0,0.00016712,2]
[333983940,1722666673107,-151.0,0.00016712,2]
[333983941,1722666673118,-620.76963121,0.00016712,2]
[333983942,1722666673128,-500.0,0.00016712,2]
[333983943,1722666673139,-195.068578,0.00016712,2]
[333983944,1722666673149,-195.068578,0.00016712,2]
[333983945,1722666673159,-1013.66,0.00016712,2]
[333983946,1722666673169,-500.0,0.00016712,2]
[333983947,1722666673180,-213.764422,0.00016712,2]
[333983948,1722666673190,-581.73,0.00016712,2]
[333983949,1722666673200,-500.0,0.00016712,2]
[333983950,1722666673210,-500.0,0.00016712,2]
[333983951,1722666673219,-500.0,0.00016712,2]
[333983952,1722666673230,-500.0,0.00016712,2]
[333983953,1722666673239,-500.0,0.00016712,2]
[333983954,1722666673249,-500.0,0.00016712,2]
[333983955,1722666673259,-500.0,0.00016712,2]
[333983956,1722666673269,-500.0,0.00016712,2]
[333983957,1722666673279,-500.0,0.00016712,2]
[333983958,1722666673289,-500.0,0.00016712,2]
[333983959,1722666673299,-500.0,0.00016712,2]
[333983960,1722666673309,-818.75,0.00016712,2]
[333983961,1722666673319,-500.0,0.00016712,2]
[333983962,1722666673329,-500.0,0.00016712,2]
[333983963,1722666673339,-500.0,0.00016712,2]
[333983964,1722666673348,-500.0,0.00016712,2]
[333983965,1722666673358,-500.0,0.00016712,2]
[333983966,1722666673367,-500.0,0.00016712,2]
[333983967,1722666673377,-500.0,0.00016712,2]
[333983968,1722666673386,-509.45195169,0.00016712,2]
[333983969,1722666673397,-500.0,0.00016712,2]
[333983970,1722666673406,-500.0,0.00016712,2]
[333983971,1722666673415,-500.0,0.00016712,2]
[333983972,1722666673425,-151.0,0.00016712,2]
[333983973,1722666673434,-151.0,0.00016712,2]
[333983974,1722666673444,-500.0,0.00016712,2]
[333983975,1722666673453,-500.0,0.00016712,2]
[333983976,1722666673463,-500.0,0.00016712,2]
[333983977,1722666673473,-500.0,0.00016712,2]
[333983978,1722666673483,-508.26780072,0.00016712,2]
[333983979,1722666673493,-500.0,0.00016712,2]
[333983980,1722666673503,-151.0,0.00016712,2]
[333983981,1722666673512,-151.0,0.00016712,2]
[333983982,1722666673522,-151.0,0.00016712,2]
[333983983,1722666673532,-151.0,0.00016712,2]
[333983984,1722666673541,-500.0,0.00016712,2]
[333983985,1722666673551,-500.0,0.00016712,2]
[333983986,1722666673560,-500.0,0.00016712,2]
[333983987,1722666673570,-500.0,0.00016712,2]
[333983988,1722666673580,-500.0,0.00016712,2]
[333983989,1722666673589,-500.0,0.00016712,2]
[333983990,1722666673599,-507.6932908,0.00016712,2]
[333983991,1722666673608,-500.0,0.00016712,2]
[333983992,1722666673617,-500.0,0.00016712,2]
[333983993,1722666673627,-588.11394756,0.00016712,2]
[333983994,1722666673640,-500.0,0.00016712,2]
[333983995,1722666673650,-500.0,0.00016712,2]
[333983996,1722666673659,-500.0,0.00016712,2]
[333983997,1722666673670,-899.56,0.00016712,2]
[333983998,1722666673680,-500.0,0.00016712,2]
[333983999,1722666673689,-500.0,0.00016712,2]
[333984000,1722666673699,-151.0,0.00016712,2]
[333984001,1722666673711,-151.0,0.00016712,2]
[333984002,1722666673721,-500.0,0.00016712,2]
[333984003,1722666673731,-151.0,0.00016712,2]
[333984004,1722666673741,-151.0,0.00016712,2]
[333984005,1722666673750,-500.0,0.00016712,2]
[333984006,1722666673760,-1080.66,0.00016712,2]
[333984007,1722666673770,-500.0,0.00016712,2]
[333984008,1722666673779,-500.0,0.00016712,2]
[333984009,1722666673788,-500.0,0.00016712,2]
[333984010,1722666673798,-500.0,0.00016712,2]
[333984011,1722666673810,-500.0,0.00016712,2]
[333984012,1722666673820,-500.0,0.00016712,2]
[333984013,1722666673831,-500.0,0.00016712,2]
[333984014,1722666673841,-151.0,0.00016712,2]
[333984015,1722666673852,-151.0,0.00016712,2]
[333984016,1722666673861,-500.0,0.00016712,2]
[333984017,1722666673871,-500.0,0.00016712,2]
[333984018,1722666673880,-500.0,0.00016712,2]
[333984019,1722666673890,-500.0,0.00016712,2]
[333984020,1722666673900,-502.41786208,0.00016712,2]
[333984021,1722666673909,-713.4,0.00016712,2]
[333984022,1722666673919,-500.0,0.00016712,2]
[333984023,1722666673929,-500.0,0.00016712,2]
[333984024,1722666673938,-500.0,0.00016712,2]
[333984025,1722666673948,-151.0,0.00016712,2]
[333984026,1722666673957,-151.0,0.00016712,2]
[333984027,1722666673967,-151.0,0.00016712,2]
[333984028,1722666673976,-151.0,0.00016712,2]
[333984029,1722666673986,-513.0,0.00016712,2]
[333984030,1722666673995,-151.0,0.00016712,2]
[333984031,1722666674005,-151.0,0.00016712,2]
[333984032,1722666674015,-1040.19,0.00016712,2]
[333984033,1722666674024,-500.0,0.00016712,2]
[333984034,1722666674034,-508.66961904,0.00016712,2]
[333984035,1722666674043,-500.0,0.00016712,2]
[333984036,1722666674053,-500.0,0.00016712,2]
[333984037,1722666674062,-992.68,0.00016712,2]
[333984038,1722666674072,-500.0,0.00016712,2]
[333984039,1722666674082,-521.61,0.00016712,2]
[333984040,1722666674093,-500.0,0.00016712,2]
[333984041,1722666674102,-500.0,0.00016712,2]
[333984042,1722666674112,-577.74,0.00016712,2]
[333984043,1722666674122,-500.0,0.00016712,2]
[333984044,1722666674132,-509.65445946,0.00016712,2]
[333984045,1722666674142,-500.0,0.00016712,2]
[333984046,1722666674151,-500.0,0.00016712,2]
[333984047,1722666674161,-645.01,0.00016712,2]
[333984048,1722666674170,-500.0,0.00016712,2]
[333984049,1722666674181,-500.0,0.00016712,2]
[333984050,1722666674191,-500.0,0.00016712,2]
[333984051,1722666674200,-502.2012402,0.00016712,2]
[333984052,1722666674210,-500.0,0.00016712,2]
[333984053,1722666674220,-500.0,0.00016712,2]
[333984054,1722666674230,-500.0,0.00016712,2]
[333984055,1722666674239,-500.0,0.00016712,2]
[333984056,1722666674249,-500.0,0.00016712,2]
[333984057,1722666674259,-500.0,0.00016712,2]
[333984058,1722666674268,-3221.08627677,0.00016712,2]
[333984059,1722666674278,-500.0,0.00016712,2]
[333984060,1722666674288,-775.07,0.00016712,2]
[333984061,1722666674297,-500.0,0.00016712,2]
[333984062,1722666674307,-968.44,0.00016712,2]
[333984063,1722666674318,-500.0,0.00016712,2]
[333984064,1722666674327,-1060.45,0.00016712,2]
[333984065,1722666674338,-500.0,0.00016712,2]
[333984066,1722666674348,-500.0,0.00016712,2]
[333984067,1722666674358,-925.11,0.00016712,2]
[333984068,1722666674367,-500.0,0.00016712,2]
[333984069,1722666674376,-500.0,0.00016712,2]
[333984070,1722666674386,-500.0,0.00016712,2]
[333984071,1722666674396,-151.0,0.00016712,2]
[333984072,1722666674405,-151.0,0.00016712,2]
[333984073,1722666674416,-889.34,0.00016712,2]
[333984074,1722666674427,-500.0,0.00016712,2]
[333984075,1722666674437,-500.0,0.00016712,2]
[333984076,1722666674446,-500.0,0.00016712,2]
[333984077,1722666674456,-285.94633729,0.00016712,2]
[333984078,1722666674466,-500.0,0.00016712,2]
[333984079,1722666674475,-500.0,0.00016712,2]
[333984080,1722666674485,-500.0,0.00016712,2]
[333984081,1722666674494,-593.73,0.00016712,2]
[333984082,1722666674504,-500.0,0.00016712,2]
[333984083,1722666674514,-500.0,0.00016712,2]
[333984084,1722666674524,-500.0,0.00016712,2]
[333984085,1722666674533,-536.50385825,0.00016712,2]
[333984086,1722666674542,-500.0,0.00016712,2]
[333984087,1722666674552,-500.0,0.00016712,2]
[333984088,1722666674562,-997.26,0.00016712,2]
[333984089,1722666674572,-500.0,0.00016712,2]
[333984090,1722666674582,-637.94,0.00016712,2]
[333984091,1722666674591,-1442.56,0.00016712,2]
[333984092,1722666674601,-720.84,0.00016712,2]
[333984093,1722666674610,-500.0,0.00016712,2]
[333984094,1722666674619,-500.0,0.00016712,2]
[333984095,1722666674631,-500.0,0.00016712,2]
[333984096,1722666674642,-600.01,0.00016712,2]
[333984097,1722666674652,-500.0,0.00016712,2]
[333984098,1722666674661,-959.37,0.00016712,2]
[333984099,1722666674672,-500.0,0.00016712,2]
[333984100,1722666674682,-500.0,0.00016712,2]
[333984101,1722666674691,-590.48,0.00016712,2]
[333984102,1722666674701,-539.49,0.00016712,2]
[333984103,1722666674713,-500.0,0.00016712,2]
[333984104,1722666674724,-500.0,0.00016712,2]
[333984105,1722666674734,-500.0,0.00016712,2]
[333984106,1722666674743,-1113.83,0.00016712,2]
[333984107,1722666674753,-500.0,0.00016712,2]
[333984108,1722666674762,-500.0,0.00016712,2]
[333984109,1722666674772,-500.0,0.00016712,2]
[333984110,1722666674781,-663.54,0.00016712,2]
[333984111,1722666674790,-500.0,0.00016712,2]
[333984112,1722666674800,-668.52,0.00016712,2]
[333984113,1722666674810,-500.0,0.00016712,2]
[333984114,1722666674819,-500.0,0.00016712,2]
[333984115,1722666674828,-500.0,0.00016712,2]
[333984116,1722666674943,-500.0,0.00016712,2]
[333984117,1722666674952,-500.0,0.00016712,2]
[333984118,1722666674962,-500.0,0.00016712,2]
[333984119,1722666674972,-1284.57,0.00016712,2]
[333984120,1722666674981,-500.0,0.00016712,2]
[333984121,1722666674991,-729.2,0.00016712,2]
[333984122,1722666675000,-500.0,0.00016712,2]
[333984123,1722666675009,-500.0,0.00016712,2]
[333984124,1722666675019,-1148.49,0.00016712,2]
[333984125,1722666675028,-500.0,0.00016712,2]
[333984126,1722666675037,-500.0,0.00016712,2]
[333984127,1722666675047,-375.17576,0.00016712,2]
[333984128,1722666675057,-650.33,0.00016712,2]
[333984129,1722666675066,-375.17576,0.00016712,2]
[333984130,1722666675077,-506.798066,0.00016712,2]
[333984131,1722666675087,-527.89,0.00016712,2]
[333984132,1722666675096,-500.0,0.00016712,2]
[333984133,1722666675106,-1657.53,0.00016712,2]
[333984134,1722666675115,-643.1,0.00016712,2]
[333984135,1722666675125,-500.0,0.00016712,2]
[333984136,1722666675135,-500.0,0.00016712,2]
[333984137,1722666675144,-375.17576,0.00016712,2]
[333984138,1722666675153,-1385.68,0.00016712,2]
[333984139,1722666675163,-691.5,0.00016712,2]
[333984140,1722666675173,-375.17576,0.00016712,2]
[333984141,1722666675183,-500.0,0.00016712,2]
[333984142,1722666675192,-186.25837,0.00016712,2]
[333984143,1722666675202,-186.25837,0.00016712,2]
[333984144,1722666675211,-534.08,0.00016712,2]
[333984145,1722666675221,-500.0,0.00016712,2]
[333984146,1722666675230,-500.0,0.00016712,2]
[333984147,1722666675239,-500.0,0.00016712,2]
[333984148,1722666675248,-923.84,0.00016712,2]
[333984149,1722666675258,-1314.98,0.00016712,2]
[333984150,1722666675267,-186.25837,0.00016712,2]
[333984151,1722666675277,-186.25837,0.00016712,2]
[333984152,1722666675288,-500.0,0.00016712,2]
[333984153,1722666675297,-891.69,0.00016712,2]
[333984154,1722666675306,-1413.97,0.00016712,2]
[333984155,1722666675316,-500.0,0.00016712,2]
[333984156,1722666675327,-518.53,0.00016712,2]
[333984157,1722666675336,-500.0,0.00016712,2]
[333984158,1722666675346,-500.0,0.00016712,2]
[333984159,1722666675355,-1485.86,0.00016712,2]
[333984160,1722666675365,-500.0,0.00016712,2]
[333984161,1722666675375,-500.0,0.00016712,2]
[333984162,1722666675384,-1833.06,0.00016712,2]
[333984163,1722666675394,-679.92,0.00016712,2]
[333984164,1722666675403,-500.0,0.00016712,2]
[333984165,1722666675413,-500.0,0.00016712,2]
[333984166,1722666675422,-500.0,0.00016712,2]
[333984167,1722666675439,-1000.0,0.00016712,2]
[333984168,1722666675448,-500.0,0.00016712,2]
[333984169,1722666675458,-500.0,0.00016712,2]
[333984170,1722666675467,-557.98,0.00016712,2]
[333984171,1722666675477,-500.0,0.00016712,2]
[333984172,1722666675486,-528.86,0.00016712,2]
[333984173,1722666675496,-1392.35,0.00016712,2]
[333984174,1722666675505,-500.0,0.00016712,2]
[333984175,1722666675515,-500.0,0.00016712,2]
[333984176,1722666675524,-500.0,0.00016712,2]
[333984177,1722666675534,-500.0,0.00016712,2]
[333984178,1722666675543,-1099.4,0.00016712,2]
[333984179,1722666675552,-500.0,0.00016712,2]
[333984180,1722666675562,-500.0,0.00016712,2]
[333984181,1722666675572,-500.0,0.00016712,2]
[333984182,1722666675582,-1735.04,0.00016712,2]
[333984183,1722666675591,-500.0,0.00016712,2]
[333984184,1722666675601,-500.0,0.00016712,2]
[333984185,1722666675610,-505.74,0.00016712,2]
[333984186,1722666675619,-516.73,0.00016712,2]
[333984187,1722666675633,-587.0,0.00016712,2]
[333984188,1722666675645,-500.0,0.00016712,2]
[333984189,1722666675655,-866.45,0.00016712,2]
[333984190,1722666675664,-516.4141376,0.00016712,2]
[333984191,1722666675674,-500.0,0.00016712,2]
[333984192,1722666675684,-514.56586119,0.00016712,2]
[333984193,1722666675693,-500.0,0.00016712,2]
[333984194,1722666675704,-500.0,0.00016712,2]
[333984195,1722666675715,-500.0,0.00016712,2]
[333984196,1722666675726,-563.21,0.00016712,2]
[333984197,1722666675736,-500.0,0.00016712,2]
[333984198,1722666675747,-540.15,0.00016712,2]
[333984199,1722666675756,-500.0,0.00016712,2]
[333984200,1722666675766,-500.0,0.00016712,2]
[333984201,1722666675775,-647.2,0.00016712,2]
[333984202,1722666675784,-500.0,0.00016712,2]
[333984203,1722666675794,-500.0,0.00016712,2]
[333984204,1722666675805,-500.0,0.00016712,2]
[333984205,1722666675814,-500.0,0.00016712,2]
[333984206,1722666675824,-500.0,0.00016712,2]
[333984207,1722666675834,-1057.56,0.00016712,2]
[333984208,1722666675843,-500.0,0.00016712,2]
[333984209,1722666675852,-554.21,0.00016712,2]
[333984210,1722666675862,-151.0,0.00016712,2]
[333984211,1722666675871,-500.0,0.00016712,2]
[333984212,1722666675881,-508.12821611,0.00016712,2]
[333984213,1722666675890,-500.0,0.00016712,2]
[333984214,1722666675900,-151.0,0.00016712,2]
[333984215,1722666675910,-500.0,0.00016712,2]
[333984216,1722666675919,-1267.48,0.00016712,2]
[333984217,1722666675928,-500.0,0.00016712,2]
[333984218,1722666675938,-500.0,0.00016712,2]
[333984219,1722666675948,-500.0,0.00016712,2]
[333984220,1722666675958,-500.0,0.00016712,2]
[333984221,1722666675968,-500.0,0.00016712,2]
[333984222,1722666675978,-500.0,0.00016712,2]
[333984223,1722666675988,-307.08490623,0.00016712,2]
[333984224,1722666675999,-500.0,0.00016712,2]
[333984225,1722666676008,-500.0,0.00016712,2]
[333984226,1722666676017,-500.0,0.00016712,2]
[333984227,1722666676027,-500.0,0.00016712,2]
[333984228,1722666676037,-1285.81,0.00016712,2]
[333984229,1722666676046,-500.0,0.00016712,2]
[333984230,1722666676055,-1985.89,0.00016712,2]
[333984231,1722666676065,-500.0,0.00016712,2]
[333984232,1722666676075,-500.0,0.00016712,2]
[333984233,1722666676084,-1048.81,0.00016712,2]
[333984234,1722666676094,-500.0,0.00016712,2]
[333984235,1722666676103,-770.94,0.00016712,2]
[333984236,1722666676113,-500.0,0.00016712,2]
[333984237,1722666676122,-648.16,0.00016712,2]
[333984238,1722666676132,-531.3,0.00016712,2]
[333984239,1722666676142,-500.0,0.00016712,2]
[333984240,1722666676151,-1630.37,0.00016712,2]
[333984241,1722666676161,-500.0,0.00016712,2]
[333984242,1722666676171,-500.0,0.00016712,2]
[333984243,1722666676183,-500.0,0.00016712,2]
[333984244,1722666676192,-942.02,0.00016712,2]